Cogmind - Beta 13 @@@ ROGUE MODE // 2024.07.25 @ 01:35:09 Player: VraethrDalkr Result: Destroyed by H-71 Marshal with Heavy Mass Driver Performance ------------- Evolutions (7) 3500 Regions Visited (16) 3200 Robots Destroyed (49) 245 Value Destroyed (1256) 1256 Prototype IDs (10) 200 Alien Tech Used (0) 0 Bonus (711) 711 TOTAL SCORE: 9112 Bonus ------- High Alert Combat Kills 11 Entered Garrisons 200 Entered DSFs 500 Cogmind --------- Core Integrity 0/1300 Matter 192/300 Energy 48/100 System Corruption 2% Temperature Cool (0) Movement Core (50) Location -3/Research Parts ------- > --- POWER (2) -------- (None) > --- PROPULSION (8) --- (None) > --- UTILITY (8) ------ Enhanced Optical Array Advanced Signal Interpreter Advanced Terrain Scan Processor 0b10 Decoder Chip [Looter] > --- WEAPON (3) ------- (None) > --- INVENTORY (5) ---- Hardcell Cannon Peak State ------------ > --- POWER ------------ Light Antimatter Reactor Particle Reactor > --- PROPULSION ------- Field Propulsion Array Field Propulsion Array Field Propulsion Array Field Propulsion Array > --- UTILITY ---------- Advanced Cryofiber Web Gravity Neutralizer Enhanced Optical Array 0b10 Decoder Chip [Looter] Advanced ECM Suite Advanced Hacking Suite System Shield Advanced Component Analysis Suite > --- WEAPON ----------- Quantum Rifle Compact HERF Cannon Matter Neutralizer > --- INVENTORY -------- Improved Linear Gravjet Advanced Sensor Array Advanced ECM Suite Remote Datajack [Rating: 140] Favorites ----------- Power Light Ion Engine Engine Light Ion Engine Power Core Fusion Compressor Reactor Light Antimatter Reactor Propulsion Flight Unit Wheel Wheel Hover Unit Gyrokinetic Inverter Flight Unit Flight Unit Utility Enhanced Optical Array Device Improved Coolant Injector Storage Medium Storage Unit Processor Enhanced Optical Array Hackware Advanced Hacking Suite Protection Propulsion Shielding Weapon Mini Grenade Launcher Energy Gun Small Laser Energy Cannon Compact HERF Cannon Ballistic Gun Light Assault Rifle Ballistic Cannon Gauss Cannon Launcher Mini Grenade Launcher Special Weapon Remote Datajack Build | -11 -10 -9 -9 -8 -8 -8 -7 -7 -6 -6 -6 -5 -5 -5 -4 -3 ------- Run | Yrd Mat Mat Sto Mat Gar Mat Fac DSF Fac Low Low Fac Upp Upp Fac Res Slots Evolved 14 | . . 2 . 2 . . 2 . 2 . . 2 . . 2 2 Power 1 | . . . . . . . . . 1 . . . . . . . Propulsion 6 | . . 1 . 1 . . 1 . 1 . . . . . . 2 Utility 6 | . . 1 . 1 . . 1 . . . . 1 . . 2 . Weapon 1 | . . . . . . . . . . . . 1 . . . . Parts Attached 163 | 8 5 20 7 3 2 5 . . 15 1 1 26 7 . 32 31 Power 24 | 1 . 2 1 . . . . . 1 . . 5 2 . 7 5 Engine 12 | 1 . 2 1 . . . . . . . . 5 1 . 2 . Core 7 | . . . . . . . . . 1 . . . 1 . 4 1 Reactor 5 | . . . . . . . . . . . . . . . 1 4 Propulsion 52 | 3 2 8 1 1 . 1 . . 5 1 . 8 1 . 14 7 Treads . | . . . . . . . . . . . . . . . . . Leg . | . . . . . . . . . . . . . . . . . Wheel 4 | 3 . . . . . . . . . . . . . . 1 . Hover 11 | . . . . . . . . . 2 1 . 1 . . 4 3 Flight 37 | . 2 8 1 1 . 1 . . 3 . . 7 1 . 9 4 Utility 45 | 2 3 5 2 2 . . . . 6 . . 8 2 . 5 10 Device 21 | 1 1 2 . 1 . . . . 2 . . 2 1 . 5 6 Storage 4 | 1 2 . . . . . . . . . . 1 . . . . Processor 12 | . . . 1 1 . . . . 3 . . 3 1 . . 3 Hackware 4 | . . . . . . . . . 1 . . 2 . . . 1 Protection 4 | . . 3 1 . . . . . . . . . . . . . Artifact . | . . . . . . . . . . . . . . . . . Weapon 42 | 2 . 5 3 . 2 4 . . 3 . 1 5 2 . 6 9 Energy Gun 11 | 1 . 2 . . . . . . . . 1 2 1 . 1 3 Energy Cannon 4 | . . . . . . . . . . . . 1 . . . 3 Ballistic Gun 16 | 1 . 3 1 . 1 1 . . 1 . . 2 1 . 5 . Ballistic Cannon 2 | . . . . . . . . . 1 . . . . . . 1 Launcher 6 | . . . 2 . 1 3 . . . . . . . . . . Special Weapon 3 | . . . . . . . . . 1 . . . . . . 2 Impact Weapon . | . . . . . . . . . . . . . . . . . Slashing Weapon . | . . . . . . . . . . . . . . . . . Piercing Weapon . | . . . . . . . . . . . . . . . . . Special Melee Weapon . | . . . . . . . . . . . . . . . . . Unidentified Prototypes 6 | . . 1 . . . . . . 1 . . 2 . . . 2 Parts Lost 84 | . . 5 3 . 2 2 . 4 2 5 . 14 2 . 16 29 Power 14 | . . 1 1 . . . . . . 1 . 2 . . 4 5 Propulsion 34 | . . 1 1 . 2 2 . 1 1 2 . 9 2 . 3 10 Utility 20 | . . 2 1 . . . . 2 . 1 . 1 . . 4 9 Weapon 16 | . . 1 . . . . . 1 1 1 . 2 . . 5 5 Highest Loss Streak 25 | . . 4 2 . 1 2 . 4 1 5 . 14 1 . 12 25 To Critical Strikes 1 | . . . . . . . . . . . . . . . . 1 Average Slot Usage (%) 66 | . 97 90 97 95 89 66 . 30 29 70 46 64 46 35 70 63 Engine 3 | . 14 9 11 9 9 4 . . . . . 3 . . . . Reactor 1 | . . . . . . . . . . . . . . . 1 6 Wheel 1 | . 19 . . . . . . . . . . . . . 2 . Hover 3 | . . . . . . . . . 1 16 13 7 . . 13 . Flight 13 | . 8 27 33 36 26 11 . 4 3 12 6 10 7 . 6 14 Device 9 | . 15 26 9 9 9 9 . 5 1 5 . 1 5 5 13 13 Processor 13 | . . . 10 14 18 18 . 8 8 13 13 27 23 23 15 11 Hackware 3 | . . . . . . . . . 6 6 6 3 5 5 5 7 Protection 2 | . . 5 11 9 9 9 . 4 . . . . . . . . Energy Gun 2 | . 14 10 . . . . . . . . 6 3 . . 2 1 Ballistic Gun 3 | . 14 11 1 . . 1 . . 1 5 . 3 2 . 3 . Launcher 3 | . . . 19 18 17 12 . 5 . . . . . . . . Naked Turns 9 | . . . . . . . . 9 . . . . . . . . Heaviest Build 58 | 11 16 11 11 7 7 9 3 3 19 18 3 24 11 1 38 58 Greatest Support 60 | 26 20 12 12 16 16 8 3 3 18 27 6 24 8 3 45 60 Greatest Overweight (x) 2 | . . 1 . . . 2 . . 2 . . 1 2 . . . Average Overweight (x) . | . . . . . . . . . . . . . . . . . Largest Inventory Capacity 10 | 8 10 5 5 5 5 5 5 5 5 5 5 5 5 5 5 5 Average Capacity 5 | 7 8 5 5 5 5 5 5 5 5 5 5 5 5 5 5 5 Most Carried 10 | 5 10 5 5 5 5 5 5 5 5 5 4 5 5 5 5 5 Average Carried 4 | 1 7 4 4 2 5 4 5 5 4 4 4 4 4 5 2 3 Final Capacity 8 | 8 5 5 5 5 5 5 5 5 5 5 5 5 5 5 5 5 Final Carried 5 | 5 5 5 3 5 5 5 5 5 2 5 4 5 5 5 4 1 Class Distribution -------------------- 50% | Mutant 19% | Scavenger-Mutant 13% | Sprinter 4% | Hacker-Sprinter 3% | Hacker-Mutant 3% | Scavenger-Sprinter Dominant Class ---------------- Mutant | -10/Materials Scavenger-Mutant | -9/Materials Scavenger-Mutant | -9/Storage Scavenger-Sprinter | -8/Materials Scavenger-Mutant | -8/Garrison Mutant | -8/Materials Mutant | -7/Factory Mutant | -7/DSF Mutant | -6/Factory Mutant | -6/Lower Caves Mutant | -6/Lower Caves Mutant | -5/Factory Mutant | -5/Upper Caves Mutant | -5/Upper Caves Mutant | -4/Factory Hacker-Sprinter | -3/Research Resources | -11 -10 -9 -9 -8 -8 -8 -7 -7 -6 -6 -6 -5 -5 -5 -4 -3 ----------- Run | Yrd Mat Mat Sto Mat Gar Mat Fac DSF Fac Low Low Fac Upp Upp Fac Res Matter Collected 2292 | 296 51 199 113 . 83 5 . 7 367 257 . 162 210 . 203 339 Remotely . | . . . . . . . . . . . . . . . . . Salvage Created 1151 | 113 107 172 10 . 138 91 . . 86 . . 109 57 . 174 94 Parts 90 | 9 5 19 3 . 4 13 . . 6 . . 9 4 . 10 8 Haulers Intercepted . | . . . . . . . . . . . . . . . . . Recyclers Shooed 4 | 1 1 . . . . . . . 2 . . . . . . . Parts Field Recycled . | . . . . . . . . . . . . . . . . . Retrieved Matter . | . . . . . . . . . . . . . . . . . Parts Self-Destructed 2 | . . . . . . . . . . . . . 2 . . . Prevented . | . . . . . . . . . . . . . . . . . Kills | -11 -10 -9 -9 -8 -8 -8 -7 -7 -6 -6 -6 -5 -5 -5 -4 -3 ------- Run | Yrd Mat Mat Sto Mat Gar Mat Fac DSF Fac Low Low Fac Upp Upp Fac Res Combat Hostiles Destroyed 41 | . 3 10 1 . 6 4 . . 2 . . 4 1 . 7 3 Guns 30 | . 3 10 . . . 1 . . 2 . . 4 1 . 7 2 Cannons 1 | . . . . . . . . . . . . . . . . 1 AOE 10 | . . . 1 . 6 3 . . . . . . . . . . Classes Destroyed 11 | 2 1 1 2 . 2 1 . . 1 . . . 1 . . . Builder 2 | . . . 1 . . 1 . . . . . . . . . . Tunneler 2 | 2 . . . . . . . . . . . . . . . . Recycler 2 | 1 1 . . . . . . . . . . . . . . . Watcher 2 | . . . 1 . . 1 . . . . . . . . . . Swarmer 24 | . 3 9 . . . . . . . . . 4 . . 7 1 Cutter 5 | . . . . . . 3 . . . . . . . . . 2 Grunt 6 | . . . . . 5 1 . . . . . . . . . . Brawler 1 | . . . . . 1 . . . . . . . . . . . Sentry 3 | . . 1 1 . . . . . 1 . . . . . . . Hunter 1 | . . . . . . . . . . . . . 1 . . . Programmer 1 | . . . . . . . . . 1 . . . . . . . Best Kill Streak 6 | 1 3 6 3 . 3 6 . . 2 . . 4 1 . 4 2 Combat Bots Only 6 | . 2 6 1 . 3 4 . . 2 . . 4 1 . 4 2 Max Kills in Single Turn 3 | 1 1 2 2 . 3 3 . . 1 . . 1 1 . 1 1 Gunslinging 1 | . . 1 . . . . . . . . . . . . . . Exploded 3 | . . . 1 . 3 1 . . . . . . . . . . Melee . | . . . . . . . . . . . . . . . . . Uniques/NPCs Destroyed . | . . . . . . . . . . . . . . . . . Combat | -11 -10 -9 -9 -8 -8 -8 -7 -7 -6 -6 -6 -5 -5 -5 -4 -3 -------- Run | Yrd Mat Mat Sto Mat Gar Mat Fac DSF Fac Low Low Fac Upp Upp Fac Res Hostile Shots Fired 1050 | . 14 54 74 2 14 16 . 24 151 24 . 100 55 8 235 279 Missed 409 | . 7 21 42 1 8 8 . 7 58 11 . 32 29 5 75 105 Damage Taken 10509 | . 77 317 330 17 132 201 . 569 1205 206 . 1136 473 59 2094 3693 Core 4314 | . 33 46 149 . 115 60 . 485 640 45 . 372 332 59 673 1305 Absorbed by Shields 241 | . . 25 66 . 5 . . 53 . . . . . . 92 . Redirected to Shielding 58 | . . . 12 5 5 11 . 25 . . . . . . . . Regen/Repaired (Parts) 34 | . . 8 . . . . . . 26 . . . . . . . Core Remaining (%) 52 | 100 86 . 51 . . 68 . 30 . . 19 . . 23 41 . Volleys Fired 131 | 16 11 19 5 . 11 5 . . 11 . . 7 4 . 30 12 Largest 3 | 2 2 2 2 . 2 2 . . 2 . . 2 1 . 3 2 Hottest 199 | 60 60 60 60 . 60 60 . . 78 . . 115 23 . 121 199 Shots Fired 244 | 32 22 38 10 . 20 7 . . 22 1 . 11 4 . 57 20 Gun 191 | 32 22 38 . . 2 2 . . 11 1 . 11 4 . 57 11 Cannon 19 | . . . . . . . . . 11 . . . . . . 8 Launcher 33 | . . . 10 . 18 5 . . . . . . . . . . Special 1 | . . . . . . . . . . . . . . . . 1 Kinetic 126 | 16 11 19 . . 2 2 . . 22 1 . 4 4 . 45 . Thermal 84 | 16 11 19 . . . . . . . . . 7 . . 12 19 Explosive 33 | . . . 10 . 18 5 . . . . . . . . . . Electromagnetic . | . . . . . . . . . . . . . . . . . Robot Hit Streak 16 | 6 5 9 8 . 3 5 . . 11 . . 4 4 . 16 6 Robot Miss Streak 5 | 5 2 3 1 . 2 1 . . 2 . . 2 1 . 3 3 Penetration Max . | . . . . . . . . . . . . . . . . . Secondary Targets 1 | . . 1 . . . . . . . . . . . . . . Max Gunslinging Chain 1 | . . 1 . . . . . . . . . . . . . . Shots Hit Robots 138 | 17 11 22 7 . 3 3 . . 16 . . 6 3 . 37 13 Core Hits 90 | 6 6 12 8 . 17 9 . . 5 . . 4 3 . 15 5 Critical Kills 1 | . . . . . . . . . . . . . 1 . . . Critical Parts Destroyed 2 | 1 . . . . . . . . 1 . . . . . . . Critical Strikes 5 | 1 . . . . . . . . 2 . . 1 1 . . . Burn 1 | . . . . . . . . . . . . 1 . . . . Destroy 3 | 1 . . . . . . . . 1 . . . 1 . . . Blast 1 | . . . . . . . . . 1 . . . . . . . Melee Attacks . | . . . . . . . . . . . . . . . . . Impact . | . . . . . . . . . . . . . . . . . Slashing . | . . . . . . . . . . . . . . . . . Piercing . | . . . . . . . . . . . . . . . . . Sneak Attacks . | . . . . . . . . . . . . . . . . . Combat Hostiles . | . . . . . . . . . . . . . . . . . Follow-up Attacks . | . . . . . . . . . . . . . . . . . Damage Inflicted 3308 | 160 127 211 259 . 616 358 . . 361 . . 119 30 . 630 437 Guns 1692 | 160 127 211 . . . 29 . . 166 . . 119 30 . 630 220 Cannons 412 | . . . . . . . . . 195 . . . . . . 217 Explosions 1204 | . . . 259 . 616 329 . . . . . . . . . . Melee . | . . . . . . . . . . . . . . . . . Ramming . | . . . . . . . . . . . . . . . . . Kinetic 1017 | 68 49 80 . . . 29 . . 361 . . 22 30 . 378 . Thermal 1087 | 92 78 131 . . . . . . . . . 97 . . 252 437 Explosive 1204 | . . . 259 . 616 329 . . . . . . . . . . Electromagnetic . | . . . . . . . . . . . . . . . . . Impact . | . . . . . . . . . . . . . . . . . Slashing . | . . . . . . . . . . . . . . . . . Piercing . | . . . . . . . . . . . . . . . . . Highest Corruption 5 | . . . 1 1 1 5 . . 3 3 3 . . . . 2 Average Corruption 2 | . . . 1 1 1 3 . . 2 3 3 . . . . 2 Corruption Purged . | . . . . . . . . . . . . . . . . . Corruption Blocked 13 | . . . . . . . . . . . . 4 . . . 9 Effects 12 | . . . . . 1 2 . . . 5 . . . . . 4 Message Errors 4 | . . . . . . 1 . . . 3 . . . . . . Matter Fused 5 | . . . . . 1 1 . . . . . . . . . 3 Heat Flow Errors 1 | . . . . . . . . . . . . . . . . 1 Energy Discharges 1 | . . . . . . . . . . 1 . . . . . . Misfires 1 | . . . . . . . . . . 1 . . . . . . Overload Shots . | . . . . . . . . . . . . . . . . . Overflow Damage 39 | . . . 39 . . . . . . . . . . . . . Projectiles . | . . . . . . . . . . . . . . . . . Explosions 39 | . . . 39 . . . . . . . . . . . . . Melee . | . . . . . . . . . . . . . . . . . Knockbacks 1 | . . . . . . . . . 1 . . . . . . . Impact . | . . . . . . . . . . . . . . . . . Kinetic 1 | . . . . . . . . . 1 . . . . . . . Secondary . | . . . . . . . . . . . . . . . . . Self-Inflicted Damage 37 | . . . . . 37 . . . . . . . . . . . Shots 2 | . . . . . 2 . . . . . . . . . . . Rammed . | . . . . . . . . . . . . . . . . . Targets Rammed . | . . . . . . . . . . . . . . . . . Kicked . | . . . . . . . . . . . . . . . . . Crushed . | . . . . . . . . . . . . . . . . . Highest Temperature 627 | 40 40 68 57 . 10 . . . 414 . . 62 . . 199 627 Average Temperature 118 | 18 23 24 25 . 5 . . . 223 . . 25 . . 126 220 Received Heat Transfer 652 | . . 56 115 . 51 27 . . 72 18 . 9 9 27 48 220 Effects 12 | . . . . . . . . . 4 . . . . . . 8 Shutdowns 4 | . . . . . . . . . 1 . . . . . . 3 Interference 7 | . . . . . . . . . 3 . . . . . . 4 Damage (major) 1 | . . . . . . . . . . . . . . . . 1 Siege Activations . | . . . . . . . . . . . . . . . . . Robots Corrupted . | . . . . . . . . . . . . . . . . . Combat Hostiles . | . . . . . . . . . . . . . . . . . Parts Fried . | . . . . . . . . . . . . . . . . . Impact Corruptions . | . . . . . . . . . . . . . . . . . Robots Melted . | . . . . . . . . . . . . . . . . . Combat Hostiles . | . . . . . . . . . . . . . . . . . Parts Melted 3 | . . . . . . . . . . . . . . . 2 1 Heat Transferred 1850 | 200 175 300 . . . . . . . . . 324 . . 407 444 Parts Sabotaged . | . . . . . . . . . . . . . . . . . Parts Stolen . | . . . . . . . . . . . . . . . . . Parts Stripped . | . . . . . . . . . . . . . . . . . Power Chain Reactions . | . . . . . . . . . . . . . . . . . Alert | -11 -10 -9 -9 -8 -8 -8 -7 -7 -6 -6 -6 -5 -5 -5 -4 -3 ------- Run | Yrd Mat Mat Sto Mat Gar Mat Fac DSF Fac Low Low Fac Upp Upp Fac Res Peak Influence 721 | 15 163 438 721 349 469 545 247 187 145 . . 190 . . 196 442 Initial 304 | . 9 68 191 304 139 228 247 172 77 . . 9 . . 13 33 Average 189 | 6 77 233 438 302 301 340 247 165 85 . . 55 . . 96 266 Maximum Alert Level 3 | . . 2 3 1 2 2 1 . . . . . . . . 2 Low Security (%) 62 | 100 100 43 2 19 39 . . 100 100 . . 100 . . 100 27 Level 1 26 | . . 40 39 80 34 72 100 . . . . . . . . 64 Level 2 10 | . . 16 51 . 26 27 . . . . . . . . . 8 Level 3 . | . . . 6 . . . . . . . . . . . . . Level 4 . | . . . . . . . . . . . . . . . . . Level 5 . | . . . . . . . . . . . . . . . . . High Security . | . . . . . . . . . . . . . . . . . Max Security . | . . . . . . . . . . . . . . . . . Squads Dispatched 22 | . . 2 5 . . 3 . 1 1 . . 3 . . 2 5 Investigation 4 | . . . 2 . . . . . . . . 1 . . . 1 Extermination 2 | . . . . . . . . . . . . . . . 1 1 Reinforcement 16 | . . 2 3 . . 3 . 1 1 . . 2 . . 1 3 Assault . | . . . . . . . . . . . . . . . . . Garrison . | . . . . . . . . . . . . . . . . . Intercept . | . . . . . . . . . . . . . . . . . Searches Triggered . | . . . . . . . . . . . . . . . . . Construction Impeded . | . . . . . . . . . . . . . . . . . Haulers Reinforced . | . . . . . . . . . . . . . . . . . Active Scanning Responses . | . . . . . . . . . . . . . . . . . Cargo Convoy Interrupts . | . . . . . . . . . . . . . . . . . Stealth | -11 -10 -9 -9 -8 -8 -8 -7 -7 -6 -6 -6 -5 -5 -5 -4 -3 --------- Run | Yrd Mat Mat Sto Mat Gar Mat Fac DSF Fac Low Low Fac Upp Upp Fac Res Distress Signals 12 | . 1 3 1 . . 2 . . . . . . . . . 5 Communications Jammed 9 | . . . . . . . . . . . . . . . 9 . Distress Signals 9 | . . . . . . . . . . . . . . . 9 . Times Spotted 261 | . 7 21 35 2 11 15 . 4 7 17 . 16 16 3 30 77 Peak Tracking Total 16 | . 4 10 16 6 8 7 . 4 5 12 . 8 10 3 10 13 Tactical Retreats 37 | . 1 1 6 . 2 2 . . . 1 . 4 3 . 3 14 Traps | -11 -10 -9 -9 -8 -8 -8 -7 -7 -6 -6 -6 -5 -5 -5 -4 -3 ------- Run | Yrd Mat Mat Sto Mat Gar Mat Fac DSF Fac Low Low Fac Upp Upp Fac Res Traps Triggered 15 | . 1 . 4 1 2 . . 1 . . . . . . 4 2 Indirectly . | . . . . . . . . . . . . . . . . . Trap Hack Attempts . | . . . . . . . . . . . . . . . . . Triggered . | . . . . . . . . . . . . . . . . . Disarmed . | . . . . . . . . . . . . . . . . . Reprogrammed . | . . . . . . . . . . . . . . . . . Reused . | . . . . . . . . . . . . . . . . . Traps Extracted . | . . . . . . . . . . . . . . . . . Installed . | . . . . . . . . . . . . . . . . . Triggered . | . . . . . . . . . . . . . . . . . Machines | -11 -10 -9 -9 -8 -8 -8 -7 -7 -6 -6 -6 -5 -5 -5 -4 -3 ---------- Run | Yrd Mat Mat Sto Mat Gar Mat Fac DSF Fac Low Low Fac Upp Upp Fac Res Machines Disabled 1 | . . . . . . . . . . . . 1 . . . . Max in Single Turn 1 | . . . . . . . . . . . . 1 . . . . Machines Repaired . | . . . . . . . . . . . . . . . . . Machines Dismantled . | . . . . . . . . . . . . . . . . . Machines Sabotaged . | . . . . . . . . . . . . . . . . . Overloaded Fab Kills . | . . . . . . . . . . . . . . . . . Hacking | -11 -10 -9 -9 -8 -8 -8 -7 -7 -6 -6 -6 -5 -5 -5 -4 -3 --------- Run | Yrd Mat Mat Sto Mat Gar Mat Fac DSF Fac Low Low Fac Upp Upp Fac Res Machines Accessed 43 | . 3 5 5 7 2 3 1 . 3 1 . 4 . . 2 7 Terminals 29 | . 2 3 4 4 2 3 1 . 1 . . 3 . . . 6 Fabricators . | . . . . . . . . . . . . . . . . . Repair Stations 3 | . . 1 . . . . . . 2 . . . . . . . Recycling Units 8 | . 1 1 1 2 . . . . . . . 1 . . 2 . Scanalyzers 1 | . . . . . . . . . . . . . . . . 1 Garrison Access 1 | . . . . 1 . . . . . . . . . . . . Total Hacks 92 | . 5 11 17 18 3 6 1 . 5 1 . 7 . . 4 14 Successful 51 | . 4 9 7 10 1 5 1 . 3 1 . 3 . . 2 5 Failed 41 | . 1 2 10 8 2 1 . . 2 . . 4 . . 2 9 Catastrophic 3 | . . . . 1 1 . . . . . . 1 . . . . Database Lockouts . | . . . . . . . . . . . . . . . . . Manual 9 | . . . 1 5 . 1 . . . . . . . . . 2 Terminals 65 | . 3 7 13 14 3 6 1 . 1 . . 5 . . . 12 Fabricators . | . . . . . . . . . . . . . . . . . Repair Stations 7 | . . 3 . . . . . . 4 . . . . . . . Recycling Units 16 | . 2 1 4 3 . . . . . . . 2 . . 4 . Scanalyzers 2 | . . . . . . . . . . . . . . . . 2 Garrison Access 1 | . . . . 1 . . . . . . . . . . . . Terminal Hacks 34 | . 2 6 5 7 1 5 1 . 1 1 . 1 . . . 4 Record 4 | . . 1 2 . . . . . . . . . . . . 1 Robot Analysis 1 | . . . 1 . . . . . . . . . . . . . Prototype ID Bank 2 | . . . . 1 . 1 . . . . . . . . . . Open Door 2 | . . . 1 . . . . . . 1 . . . . . . Open DSF 3 | . . . . . . . 1 . . . . 1 . . . 1 Branch Access Points 1 | . . . 1 . . . . . . . . . . . . . Emergency Access Points 3 | . . 2 . . 1 . . . . . . . . . . . Alert Level 3 | . . . . 2 . 1 . . . . . . . . . . Unreport Threat 1 | . . . . 1 . . . . . . . . . . . . Locate Traps 3 | . . . . 1 . 1 . . 1 . . . . . . . Dispatch Records 3 | . . 1 . 2 . . . . . . . . . . . . Recall Investigation 1 | . . 1 . . . . . . . . . . . . . . Zone Layout 7 | . 2 1 . . . 2 . . . . . . . . . 2 Fabricator Hacks . | . . . . . . . . . . . . . . . . . Repair Station Hacks 4 | . . 2 . . . . . . 2 . . . . . . . Scan Component 2 | . . 1 . . . . . . 1 . . . . . . . Repair 2 | . . 1 . . . . . . 1 . . . . . . . Recycling Unit Hacks 11 | . 2 1 2 2 . . . . . . . 2 . . 2 . Report Inventory 8 | . 2 1 1 2 . . . . . . . 1 . . 1 . Retrieve Components 3 | . . . 1 . . . . . . . . 1 . . 1 . Scanalyzer 1 | . . . . . . . . . . . . . . . . 1 Insert Component 1 | . . . . . . . . . . . . . . . . 1 Garrison Access Hacks 1 | . . . . 1 . . . . . . . . . . . . Unlock Access 1 | . . . . 1 . . . . . . . . . . . . Unauthorized Hacks . | . . . . . . . . . . . . . . . . . Terminals . | . . . . . . . . . . . . . . . . . Fabricators . | . . . . . . . . . . . . . . . . . Repair Stations . | . . . . . . . . . . . . . . . . . Recycling Units . | . . . . . . . . . . . . . . . . . Scanalyzers . | . . . . . . . . . . . . . . . . . Garrison Access . | . . . . . . . . . . . . . . . . . Data Cores Recovered . | . . . . . . . . . . . . . . . . . Used . | . . . . . . . . . . . . . . . . . Hacking Detections 26 | . 2 3 3 5 1 2 . . 2 . . 2 . . 1 5 Full Trace Events 4 | . . . 1 . 1 . . . . . . 1 . . . 1 Feedback Events . | . . . . . . . . . . . . . . . . . Feedback Blocked . | . . . . . . . . . . . . . . . . . Robot Schematics Acquired . | . . . . . . . . . . . . . . . . . Robots Built . | . . . . . . . . . . . . . . . . . Authchips . | . . . . . . . . . . . . . . . . . Time . | . . . . . . . . . . . . . . . . . Total Robot Build Rating . | . . . . . . . . . . . . . . . . . Part Schematics Acquired . | . . . . . . . . . . . . . . . . . Parts Built . | . . . . . . . . . . . . . . . . . Authchips . | . . . . . . . . . . . . . . . . . Time . | . . . . . . . . . . . . . . . . . Total Part Build Rating . | . . . . . . . . . . . . . . . . . Parts Repaired 2 | . . 1 . . . . . . 1 . . . . . . . Time 52 | . . 26 . . . . . . 26 . . . . . . . Parts Recycled . | . . . . . . . . . . . . . . . . . Recycled Matter . | . . . . . . . . . . . . . . . . . Retrieved Matter . | . . . . . . . . . . . . . . . . . Retrieved Components 8 | . . . 2 . . . . . . . . 3 . . 3 . Parts Scanalyzed 1 | . . . . . . . . . . . . . . . . 1 Part Schematics Acquired . | . . . . . . . . . . . . . . . . . Parts Damaged 1 | . . . . . . . . . . . . . . . . 1 Bothacking | -11 -10 -9 -9 -8 -8 -8 -7 -7 -6 -6 -6 -5 -5 -5 -4 -3 ------------ Run | Yrd Mat Mat Sto Mat Gar Mat Fac DSF Fac Low Low Fac Upp Upp Fac Res Used RIF Installer . | . . . . . . . . . . . . . . . . . Robots Hacked . | . . . . . . . . . . . . . . . . . Non-combat . | . . . . . . . . . . . . . . . . . Combat . | . . . . . . . . . . . . . . . . . Robot Hacks Applied . | . . . . . . . . . . . . . . . . . Relay Couplers Released . | . . . . . . . . . . . . . . . . . Fabnet Peak Effective % . | . . . . . . . . . . . . . . . . . Robots Rewired . | . . . . . . . . . . . . . . . . . Allies Hacked . | . . . . . . . . . . . . . . . . . Hacks Repelled . | . . . . . . . . . . . . . . . . . Allies | -11 -10 -9 -9 -8 -8 -8 -7 -7 -6 -6 -6 -5 -5 -5 -4 -3 -------- Run | Yrd Mat Mat Sto Mat Gar Mat Fac DSF Fac Low Low Fac Upp Upp Fac Res Total Allies . | . . . . . . . . . . . . . . . . . Largest Group . | . . . . . . . . . . . . . . . . . Highest-Rated Group . | . . . . . . . . . . . . . . . . . Highest-Rated Ally . | . . . . . . . . . . . . . . . . . Total Orders . | . . . . . . . . . . . . . . . . . Ally Attacks . | . . . . . . . . . . . . . . . . . Total Damage . | . . . . . . . . . . . . . . . . . Kills . | . . . . . . . . . . . . . . . . . Allies Corrupted . | . . . . . . . . . . . . . . . . . Allies Melted . | . . . . . . . . . . . . . . . . . Intel | -11 -10 -9 -9 -8 -8 -8 -7 -7 -6 -6 -6 -5 -5 -5 -4 -3 ------- Run | Yrd Mat Mat Sto Mat Gar Mat Fac DSF Fac Low Low Fac Upp Upp Fac Res Robot Analysis Total 1 | . . . 1 . . . . . . . . . . . . . Derelict Logs Recovered 5 | . . . . . . . . . . 2 . . 3 . . . Drone Launches . | . . . . . . . . . . . . . . . . . Drone Recoveries . | . . . . . . . . . . . . . . . . . Decoded 0b10 Intel 89 | . . . . . . . . . . . . 25 . . 31 33 Items 89 | . . . . . . . . . . . . 25 . . 31 33 Exploration | -11 -10 -9 -9 -8 -8 -8 -7 -7 -6 -6 -6 -5 -5 -5 -4 -3 ------------- Run | Yrd Mat Mat Sto Mat Gar Mat Fac DSF Fac Low Low Fac Upp Upp Fac Res Turns Passed 3747 | 113 200 323 273 94 146 114 1 50 405 213 16 336 486 17 412 548 Spaces Moved 7177 | 66 254 537 608 276 231 240 3 91 597 384 38 551 1340 34 577 1350 Core 718 | 4 . . . . . 1 . 43 508 . . . 17 34 57 54 Treads . | . . . . . . . . . . . . . . . . . Legs . | . . . . . . . . . . . . . . . . . Wheels 184 | 62 122 . . . . . . . . . . . . . . . Hover 923 | . . . . . . . . . 52 384 . 313 . . 161 13 Flight 5352 | . 132 537 608 276 231 239 3 48 37 . 38 238 1323 . 359 1283 Fastest Speed 16 | 50 37 34 34 31 31 35 35 35 32 52 40 24 32 50 30 16 Average Speed 39 | 79 57 35 34 31 33 36 35 42 50 54 40 46 34 50 42 32 Slowest Speed 195 | 90 80 120 34 31 37 150 35 50 180 56 40 116 195 50 70 61 Overloaded Moves 20 | . . . . . . . . . . . . . . . . 20 Propulsion Burnouts . | . . . . . . . . . . . . . . . . . Robots Hopped 64 | . . 13 10 3 . 2 . . . . . 4 3 . 4 25 Cave-ins Triggered . | . . . . . . . . . . . . . . . . . Exploration Rate (%) 38 | 5 34 41 91 28 35 33 . 74 14 63 7 18 99 10 23 44 Regions Visited 16 Branch Regions 5 Pre-discovered Areas 1 | . . . . . . . . . . . . . 1 . . . Known Exits Taken 2 | . . . . 1 . . 1 . . . . . . . . . Unknown Exits Taken 12 | 1 1 1 1 . . 1 . . 1 1 1 1 1 1 1 . Scrap Searched 6 | . . . . . . . . . . 4 . . 2 . . . Spaces Dug . | . . . . . . . . . . . . . . . . . Terrain Destroyed 218 | . . . 39 . 134 40 . . 2 . . . . . 1 2 Melee . | . . . . . . . . . . . . . . . . . Projectile 5 | . . . . . . . . . 2 . . . . . 1 2 AOE 213 | . . . 39 . 134 40 . . . . . . . . . . Terrain Rammed . | . . . . . . . . . . . . . . . . . Walls Destroyed . | . . . . . . . . . . . . . . . . . Machines Disabled . | . . . . . . . . . . . . . . . . . Actions | -11 -10 -9 -9 -8 -8 -8 -7 -7 -6 -6 -6 -5 -5 -5 -4 -3 --------- Run | Yrd Mat Mat Sto Mat Gar Mat Fac DSF Fac Low Low Fac Upp Upp Fac Res Total 7792 | 93 290 622 654 280 278 258 2 102 685 390 38 613 1362 33 684 1408 Wait 153 | . 3 40 . . . . . . 52 . . 14 . . 31 13 Move 7040 | 65 253 511 588 270 230 235 2 90 596 383 37 542 1333 33 568 1304 Hop 58 | . . 12 9 3 . 2 . . . . . 4 3 . 4 21 Pick Up 69 | 4 8 9 2 4 . 3 . . 7 4 . 6 1 . 7 14 Fast Attach 87 | 7 1 5 4 1 . 2 . . 8 1 . 17 3 . 22 16 Attach 58 | . . 5 3 2 . 2 . . 7 . 1 8 4 . 10 16 Detach 22 | . . . 1 . . 3 . . . . . 6 4 . 2 6 Swap 19 | 1 4 10 . . 2 1 . . . . . 1 . . . . Drop 64 | . 10 11 5 . . 5 . . 4 2 . 8 3 . 10 6 Fire 131 | 16 11 19 5 . 11 5 . . 11 . . 7 4 . 30 12 Melee . | . . . . . . . . . . . . . . . . . Ram . | . . . . . . . . . . . . . . . . . Kick . | . . . . . . . . . . . . . . . . . Crush . | . . . . . . . . . . . . . . . . . Escape Stasis 79 | . . . 36 . 35 . . 8 . . . . . . . . Rewire 12 | . . . 1 . . . . 4 . . . . 7 . . . Trap . | . . . . . . . . . . . . . . . . . Miscellaneous . | . . . . . . . . . . . . . . . . . Route ------- -11/Scrapyard -10/Materials -9/Materials -9/Storage (discovered 2 exits: *Mat / Rec) -8/Materials -8/Garrison -8/Materials -7/Factory -7/DSF -6/Factory -6/Lower Caves -6/Lower Caves -5/Factory -5/Upper Caves -5/Upper Caves -4/Factory -3/Research (discovered 2 exits: [*Arm] / [*Qua]) History --------- Turn | Location | Event 18 | -11/Scrapyard | Discovered new exit (range 15) 114 | -11/Scrapyard | Entered Materials 284 | -10/Materials | Discovered new exit (range 15) 314 | -10/Materials | Entered another Materials area 314 | -9/Materials | Evolved 2 slots: Propulsion x1, Utility x1 317 | -9/Materials | Build established: Mutant 364 | -9/Materials | Repaired Lgt. Ion Engine 510 | -9/Materials | Lost 4 parts (1p1n2u) 632 | -9/Materials | Discovered new exit (range 14) 637 | -9/Materials | Entered Storage 647 | -9/Storage | Identified exit to Recycling 773 | -9/Storage | Build established: Scavenger-Mutant 906 | -9/Storage | Discovered new exit (range 12) 910 | -9/Storage | Entered Materials 910 | -8/Materials | Evolved 2 slots: Propulsion x1, Utility x1 1004 | -8/Materials | Identified exit to Garrison 1004 | -8/Materials | Entered Garrison 1042 | -8/Garrison | Triggered checkpoint 1050 | -8/Garrison | Triggered checkpoint 1138 | -8/Garrison | Triggered checkpoint 1147 | -8/Garrison | Discovered new exit (range 11) 1150 | -8/Garrison | Entered Materials 1263 | -8/Materials | Discovered new exit (range 4) 1264 | -8/Materials | Entered Factory 1264 | -7/Factory | Evolved 2 slots: Propulsion x1, Utility x1 1265 | -7/Factory | Identified exit to DSF 1265 | -7/Factory | Entered DSF 1277 | -7/DSF | Additional patrols routed to DSF 1306 | -7/DSF | Core integrity fell below 50% 1308 | -7/DSF | Discovered new exit (range 15) 1315 | -7/DSF | Entered Factory 1315 | -6/Factory | Evolved 2 slots: Power x1, Propulsion x1 1332 | -6/Factory | Lost 4 parts (1n2u1w) 1404 | -6/Factory | Repaired Lgt. Ion Engine 1488 | -6/Factory | Build established: Mutant 1567 | -6/Factory | Spotted B-75 Beast 1643 | -6/Factory | Core integrity fell below 50% 1719 | -6/Factory | Discovered new exit (range 2) 1720 | -6/Factory | Entered Lower Caves 1852 | -6/Lower Caves | Learned Factory emergency access door positions 1896 | -6/Lower Caves | Learned Factory trap positions 1920 | -6/Lower Caves | Attracted the attention of an 0b10 outpost 1927 | -6/Lower Caves | Discovered new exit (range 12) 1932 | -6/Lower Caves | Core integrity fell below 20% 1933 | -6/Lower Caves | Entered another Lower Caves area 1947 | -6/Lower Caves | Discovered new exit (range 6) 1949 | -6/Lower Caves | Entered Factory 1949 | -5/Factory | Evolved 2 slots: Utility x1, Weapon x1 1950 | -5/Factory | Loaded intel: 116 trap records 1961 | -5/Factory | Lost 5 parts (1p2n1u1w) 2254 | -5/Factory | Lost 14 parts (2p9n1u2w) 2275 | -5/Factory | Discovered new exit (range 8) 2285 | -5/Factory | Entered Upper Caves 2290 | -5/Upper Caves | Learned Factory interactive machine intel 2578 | -5/Upper Caves | Learned location of Warlord (-5) 2651 | -5/Upper Caves | Attracted the attention of an 0b10 checkpoint 2653 | -5/Upper Caves | Learned Factory non-interactive machine intel 2678 | -5/Upper Caves | Core integrity fell below 50% 2747 | -5/Upper Caves | Attracted the attention of an 0b10 outpost 2762 | -5/Upper Caves | Discovered new exit (range 15) 2771 | -5/Upper Caves | Entered another Upper Caves area 2781 | -5/Upper Caves | Attracted the attention of an 0b10 checkpoint 2787 | -5/Upper Caves | Discovered new exit (range 3) 2788 | -5/Upper Caves | Entered Factory 2788 | -4/Factory | Evolved 2 slots: Utility x2 2789 | -4/Factory | Loaded intel: 230 non-interactive machine locations 2790 | -4/Factory | Loaded intel: 52 interactive machine locations 3087 | -4/Factory | Lost 12 parts (3p3n2u4w) 3111 | -4/Factory | Core integrity fell below 50% 3142 | -4/Factory | Spotted B-86 Titan 3195 | -4/Factory | Discovered new exit (range 15) 3200 | -4/Factory | Entered Research 3200 | -3/Research | Evolved 2 slots: Propulsion x2 3266 | -3/Research | Found Prototype Device 3372 | -3/Research | Identified Exp. Thermal Shield 3509 | -3/Research | Spotted B-86 Titan 3651 | -3/Research | Spotted B-86 Titan 3701 | -3/Research | Discovered new exit (range 10) 3716 | -3/Research | Core integrity fell below 50% 3721 | -3/Research | Discovered new exit (range 22) 3744 | -3/Research | Core integrity fell below 20% 3748 | -3/Research | Destroyed by H-71 Marshal with Heavy Mass Driver Last Messages --------------- 03733_ Xenon Bombardment Thruster melted. 03733_ S-43 Plague destroyed. 03735_ Imp. Cloaking Device destroyed. 03739_ Penetrated by Slug. 03739_ Dispersion Rifle destroyed. 03739_ Penetrated by Slug. 03739_ Antigrav Array destroyed. 03739_ Acquired 35 matter. 03740_ Knocked back. 03741_ Slug penetrates Terminal. 03741_ Penetrated by Slug. 03742_ Terminal disabled. 03742_ Acquired 5 matter. 03744_ >> DECODED: Prototype Hackware location. 03744_ R-10 Processor suffers critical hit (Destroy). 03744_ Imp. Gyrokinetic Inverter destroyed. 03744_ Knocked back. 03746_ Acquired 1 matter. 03748_ Penetrated by Slug. Map ----- +----------------------------------------------------+ | ?????????????????????????????????????????????????? | | ?????????????????????????????????????????????????? | | ?????????????????????????????????????????????????? | | ?????????????????????????????????????????????????? | | ?????????????????????????????????????????????????? | | ?????????????????????????????????????????????????? | | ?????????????????????????????????????????????????? | | ?????????????????????????????????????????????????? | | ?????????????????????????????????????????????????? | | ?????????????????????????????????????????????????? | | ?????????????????????????????????????????????????? | | ?????????????????????????????????????????????????? | | ?????????????????????????????????????????????????? | | ?????????????????????????????????????????????????? | | ?????????????????????????????????????????????????? | | ???????????????????#############?????????????????? | | ???????????????????#"""""""""""#?????????????????? | | ???????????????????#" " " " "#?????????????????? | | ???????????????????#"" ""#?????????????????? | | ???????????????????#" < "#?????????????????? | | ???????????????????#"" ""#?????????????????? | | ???????????????????# #?????????????????? | | ????????????????????""" """??????????????????? | | ????????????????###### #####???????????????? | | ?????????????????""""""" % """""""???????????????? | | ??????????????????????# @ T#????????????????????? | | ????????????????###???## ##????????????????????? | | ????????????????#! ??# #?????????????????????? | | ????????????????# # #?????????????????????? | | ????????????????# + +?????????????????????? | | ?????????######?# # #?????????????????????? | | ?????????# #?#! *??# #?????????????????????? | | ?????????# #?# ????# #?????????????????????? | | ?????????# = #?#??????# #?????!???????????????? | | ?????????# #????????# % #?????????????????????? | | ?????????# #????????# #?????????????????????? | | ?????????# #????????# +?????????????????????? | | ?????????# #????????# #?????????????????????? | | ?????????# #????????#shs############??????????? | | ???####### #???????## s## #??????????? | | #### ###+########## # #??????????? | | R# #??????????? | | < p"" + % #??????????? | | # *! /#??????????? | | ####! ##########+### [ H "[ !! #??????????? | | ######+#####????? ]## ## ! #??????????? | | # ?????# #" ## #??????????? | | # ????????# ## ############??????????? | | " ???????????# ## #?????????????????????? | | # ?????????????#/ ## #?????????????????????? | +----------------------------------------------------+ Best States ------------- Heat Dissipation 51 Coolant Potential 80 Energy Generation 39 Energy Capacity 410 Matter Stores 300 Matter Capacity 300 Sight Range 22 Robot Scan Range 16 Terrain Scan Range 16 Terrain Scan Density 210 ECM Strength 2 Jamming Range 16 Cloak Strength 3 Additional Mass Support 12 Base Temperature (-) 200 Corruption Block 20 Armor Coverage 150 Propulsion Shielding 33 Weapon Cycling 15 Evasion (%) 64 Targeting Accuracy 5 Target Analysis 5 Offensive Hacking 14 Defensive Hacking 10 Item Schematics ----------------- None Robot Schematics ------------------ None Fabricated ------------ Nothing Alien Tech Used ----------------- None Achievements -------------- None Challenges ------------ None Game ------ Seed HoverExplosiveDesublimator Manual? 0 Play Time 02:26:30 Cumulative 101.9 hours Start 2024.07.24 @ 22:41:20 End 2024.07.25 @ 01:35:09 Sessions 1 Manual Loads 0 Difficulty Rogue Special Mode None Game No. 47 Rogue 37 Adventurer 10 Explorer 0 Win Type - Total 1 Types 0/0/1/0/0/0/0/0/0 Lore% 40 Gallery% 48 Achievement% 39 Wizard Run 0 Options --------- Layout 1 ASCII 0 Keyboard 0 Movement Arrows Keybinds 0 Fullscreen 2 Font 32/SmallcapsGlow Map View 50x35 Zoom Use 0% Tactical HUD 1 Map Filters NONE Filters NONE Steam 0 RUN: 20169b02-24ed-4e6e-ae7f-e0b69a936021